[Event "Early-Titled-Tuesday-Blitz-October-03-2023"]
[Site "Chess.com"]
[Date "2023.10.03"]
[Round "3"]
[White "Aleksandar-Topalov"]
[Black "Sadykov_Ramil"]
[Result "0-1"]
[WhiteElo "2400"]
[BlackElo "2607"]
[TimeControl "180+1"]
[EndTime "8:29:48 PDT"]
[Termination "Sadykov_Ramil won by resignation"]

1. b3 {[%clk 0:03:00.9]} 1... e5 {[%clk 0:02:50.8]} 2. Bb2 {[%clk 0:02:59.1]}
2... Nc6 {[%clk 0:02:50.4]} 3. c4 {[%clk 0:02:58.7]} 3... Nf6 {[%clk 0:02:46.1]}
4. e3 {[%clk 0:02:58.2]} 4... d5 {[%clk 0:02:46]} 5. cxd5 {[%clk 0:02:52.4]}
5... Nxd5 {[%clk 0:02:46.8]} 6. a3 {[%clk 0:02:52.9]} 6... a5 {[%clk 0:02:44.8]}
7. Qc2 {[%clk 0:02:52.5]} 7... Bd6 {[%clk 0:02:42.4]} 8. Nf3 {[%clk 0:02:52.6]}
8... O-O {[%clk 0:02:41]} 9. d3 {[%clk 0:02:52.8]} 9... Nb6 {[%clk 0:02:34.3]}
10. Nbd2 {[%clk 0:02:52.7]} 10... f5 {[%clk 0:02:30.6]} 11. g3 {[%clk
0:02:52.8]} 11... Be6 {[%clk 0:02:27]} 12. Be2 {[%clk 0:02:52.1]} 12... Kh8
{[%clk 0:02:25.6]} 13. Nc4 {[%clk 0:02:49.8]} 13... Nxc4 {[%clk 0:02:09.4]} 14.
dxc4 {[%clk 0:02:46.8]} 14... b6 {[%clk 0:02:00.6]} 15. O-O-O {[%clk 0:02:36.8]}
15... Qe7 {[%clk 0:01:59]} 16. c5 {[%clk 0:02:12.2]} 16... Bxc5 {[%clk
0:01:54.9]} 17. Nxe5 {[%clk 0:02:06.4]} 17... Nxe5 {[%clk 0:01:46.7]} 18. Bxe5
{[%clk 0:02:06.3]} 18... Bxa3+ {[%clk 0:01:23.6]} 19. Kb1 {[%clk 0:02:05.8]}
19... a4 {[%clk 0:00:59.6]} 20. Qxc7 {[%clk 0:01:59]} 20... Bxb3 {[%clk
0:00:50.7]} 21. Qxe7 {[%clk 0:01:55.5]} 21... Bxe7 {[%clk 0:00:51.6]} 22. Rd7
{[%clk 0:01:54.8]} 22... Bf6 {[%clk 0:00:49.5]} 23. Bxf6 {[%clk 0:01:48.1]}
23... Rxf6 {[%clk 0:00:50.4]} 24. Rc1 {[%clk 0:01:46.8]} 24... Rf7 {[%clk
0:00:35]} 25. Rd6 {[%clk 0:01:43.6]} 25... g6 {[%clk 0:00:18.5]} 26. Rxb6 {[%clk
0:01:43.3]} 26... Rd7 {[%clk 0:00:19.2]} 27. Bc4 {[%clk 0:01:18.3]} 27... Bxc4
{[%clk 0:00:13.5]} 28. Rxc4 {[%clk 0:01:17.8]} 28... a3 {[%clk 0:00:14]} 29. Rc2
{[%clk 0:01:14]} 29... Kg7 {[%clk 0:00:11.3]} 30. Ka2 {[%clk 0:01:12.4]} 30...
Rd3 {[%clk 0:00:04.4]} 31. Rb3 {[%clk 0:01:07.8]} 31... Rxb3 {[%clk 0:00:03]}
32. Kxb3 {[%clk 0:01:08.2]} 32... Kf6 {[%clk 0:00:03.6]} 33. Ra2 {[%clk
0:01:03.1]} 33... Ke5 {[%clk 0:00:03.5]} 34. f3 {[%clk 0:01:03.6]} 34... g5
{[%clk 0:00:03.2]} 35. Rxa3 {[%clk 0:01:01.1]} 35... Rxa3+ {[%clk 0:00:02.1]}
36. Kxa3 {[%clk 0:01:01.4]} 36... g4 {[%clk 0:00:03]} 37. f4+ {[%clk 0:00:49]}
37... Ke4 {[%clk 0:00:03.2]} 38. Kb4 {[%clk 0:00:49.6]} 38... Kxe3 {[%clk
0:00:03.6]} 39. Kc5 {[%clk 0:00:50.3]} 39... Kf3 {[%clk 0:00:04]} 40. Kd5 {[%clk
0:00:50.9]} 40... Kg2 {[%clk 0:00:04.5]} 41. Ke5 {[%clk 0:00:51.6]} 41... Kxh2
{[%clk 0:00:04.8]} 42. Kxf5 {[%clk 0:00:52.3]} 42... Kxg3 {[%clk 0:00:04]} 43.
Ke5 {[%clk 0:00:51.8]} 43... Kh2 {[%clk 0:00:02.2]} 44. f5 {[%clk 0:00:52.4]}
44... g3 {[%clk 0:00:03.1]} 45. f6 {[%clk 0:00:53.1]} 45... g2 {[%clk 0:00:04]}
46. f7 {[%clk 0:00:53.7]} 46... g1=Q {[%clk 0:00:04.9]} 47. f8=Q {[%clk
0:00:54.3]} 47... Qe1+ {[%clk 0:00:04.3]} 48. Kd5 {[%clk 0:00:54]} 48... Qg3
{[%clk 0:00:03.2]} 49. Qh6+ {[%clk 0:00:51.2]} 49... Qh3 {[%clk 0:00:03.3]} 50.
Qd6+ {[%clk 0:00:49.5]} 50... Kg2 {[%clk 0:00:03.2]} 51. Qe7 {[%clk 0:00:35.4]}
51... h5 {[%clk 0:00:03.2]} 52. Qg7+ {[%clk 0:00:32.4]} 52... Qg4 {[%clk
0:00:03]} 53. Qb2+ {[%clk 0:00:30.9]} 53... Kg3 {[%clk 0:00:03.5]} 54. Qe5+
{[%clk 0:00:29.1]} 54... Kh3 {[%clk 0:00:03.4]} 55. Qe3+ {[%clk 0:00:27.2]}
55... Qg3 {[%clk 0:00:03.9]} 56. Qe6+ {[%clk 0:00:25.9]} 56... Kh4 {[%clk
0:00:03.3]} 57. Qf6+ {[%clk 0:00:23.9]} 57... Qg5+ {[%clk 0:00:03.5]} 58. Qxg5+
{[%clk 0:00:22.9]} 58... Kxg5 {[%clk 0:00:04.4]} 59. Ke4 {[%clk 0:00:23.5]}
59... Kg4 {[%clk 0:00:04.9]} 60. Ke3 {[%clk 0:00:23.7]} 60... Kg3 {[%clk
0:00:05.5]} 61. Ke2 {[%clk 0:00:23.9]} 61... Kg2 {[%clk 0:00:06.2]} 62. Ke1
{[%clk 0:00:23.6]} 62... h4 {[%clk 0:00:06.5]} 0-1

[Event "Early-Titled-Tuesday-Blitz-October-03-2023"]
[Site "Chess.com"]
[Date "2023.10.03"]
[Round "3"]
[White "HajiyevKanan"]
[Black "LionTheLeon_06"]
[Result "1-0"]
[WhiteElo "2518"]
[BlackElo "2789"]
[TimeControl "180+1"]
[EndTime "8:29:49 PDT"]
[Termination "HajiyevKanan won by resignation"]

1. d4 {[%clk 0:03:00.9]} 1... e6 {[%clk 0:02:57.5]} 2. Nf3 {[%clk 0:03:01.6]}
2... d5 {[%clk 0:02:57.7]} 3. c4 {[%clk 0:03:01.5]} 3... Nf6 {[%clk 0:02:57]} 4.
cxd5 {[%clk 0:03:01.6]} 4... exd5 {[%clk 0:02:57.1]} 5. Nc3 {[%clk 0:03:02]}
5... c6 {[%clk 0:02:57]} 6. Qc2 {[%clk 0:03:01.5]} 6... Be7 {[%clk 0:02:57.1]}
7. Bf4 {[%clk 0:03:01.2]} 7... g6 {[%clk 0:02:55.4]} 8. e3 {[%clk 0:03:01.1]}
8... Bf5 {[%clk 0:02:55.5]} 9. Bd3 {[%clk 0:03:02]} 9... Bxd3 {[%clk 0:02:54.9]}
10. Qxd3 {[%clk 0:03:02.9]} 10... Nbd7 {[%clk 0:02:53.9]} 11. O-O {[%clk
0:03:03.5]} 11... O-O {[%clk 0:02:51.1]} 12. h3 {[%clk 0:03:04.1]} 12... Re8
{[%clk 0:02:51.4]} 13. Rab1 {[%clk 0:03:03.7]} 13... a5 {[%clk 0:02:49.9]} 14.
Rfe1 {[%clk 0:03:00.7]} 14... Nb6 {[%clk 0:02:46.4]} 15. Ne5 {[%clk 0:02:59.6]}
15... Bd6 {[%clk 0:02:32.1]} 16. Qc2 {[%clk 0:02:59.3]} 16... Re6 {[%clk
0:02:31]} 17. Bh2 {[%clk 0:02:58]} 17... Nfd7 {[%clk 0:02:27.7]} 18. f4 {[%clk
0:02:57.4]} 18... Re8 {[%clk 0:01:39.8]} 19. Kh1 {[%clk 0:02:55.5]} 19... f6
{[%clk 0:01:37.8]} 20. Nxg6 {[%clk 0:02:51.3]} 20... Nc4 {[%clk 0:01:14.7]} 21.
Ne5 {[%clk 0:02:30.8]} 21... fxe5 {[%clk 0:01:12.5]} 22. dxe5 {[%clk 0:02:23.2]}
22... Bb4 {[%clk 0:00:50]} 23. Rbd1 {[%clk 0:01:59.4]} 23... Qb6 {[%clk
0:00:36.5]} 24. e4 {[%clk 0:01:52.6]} 24... Ne3 {[%clk 0:00:32.2]} 25. Rxe3
{[%clk 0:01:32.2]} 25... Qxe3 {[%clk 0:00:33.1]} 26. exd5 {[%clk 0:01:32.6]}
26... Bxc3 {[%clk 0:00:32.6]} 27. bxc3 {[%clk 0:01:29.6]} 27... cxd5 {[%clk
0:00:33]} 28. Rxd5 {[%clk 0:01:26.4]} 28... Nf8 {[%clk 0:00:29.5]} 29. Qb3
{[%clk 0:01:23.4]} 29... Kh8 {[%clk 0:00:20.7]} 30. f5 {[%clk 0:01:15.9]} 30...
Rad8 {[%clk 0:00:15.5]} 31. Qxb7 {[%clk 0:01:00]} 31... Qe4 {[%clk 0:00:07.5]}
32. Rxd8 {[%clk 0:00:31]} 32... Qxb7 {[%clk 0:00:07]} 33. Rxe8 {[%clk
0:00:31.7]} 33... Qb1+ {[%clk 0:00:07.4]} 34. Bg1 {[%clk 0:00:31.8]} 34... Kg8
{[%clk 0:00:06.5]} 35. e6 {[%clk 0:00:29.2]} 35... Qb5 {[%clk 0:00:04]} 36. f6
{[%clk 0:00:25.5]} 36... Qxe8 {[%clk 0:00:03.4]} 37. f7+ {[%clk 0:00:26.1]}
37... Qxf7 {[%clk 0:00:04.2]} 38. exf7+ {[%clk 0:00:27]} 38... Kxf7 {[%clk
0:00:05.1]} 39. a4 {[%clk 0:00:26.8]} 39... Nd7 {[%clk 0:00:05.2]} 40. Bd4
{[%clk 0:00:26.6]} 40... Ke6 {[%clk 0:00:05.5]} 41. g4 {[%clk 0:00:23.3]} 41...
Kd5 {[%clk 0:00:06]} 42. Kg2 {[%clk 0:00:20.3]} 42... Kc4 {[%clk 0:00:06.5]} 43.
h4 {[%clk 0:00:20.9]} 43... Kb3 {[%clk 0:00:06.9]} 44. g5 {[%clk 0:00:21.6]}
44... Kxa4 {[%clk 0:00:07.6]} 45. h5 {[%clk 0:00:22.2]} 45... Nf8 {[%clk
0:00:05]} 46. Bg7 {[%clk 0:00:18.4]} 46... Ne6 {[%clk 0:00:05.1]} 47. Bf6 {[%clk
0:00:19.1]} 47... Nf4+ {[%clk 0:00:04.3]} 48. Kf3 {[%clk 0:00:16.3]} 48... Nxh5
{[%clk 0:00:05.2]} 49. Be5 {[%clk 0:00:16.1]} 49... Kb3 {[%clk 0:00:05.1]} 50.
Kg4 {[%clk 0:00:16]} 50... a4 {[%clk 0:00:04.8]} 51. c4 {[%clk 0:00:13.4]} 51...
Kxc4 {[%clk 0:00:03.1]} 52. Kxh5 {[%clk 0:00:13.9]} 52... Kd5 {[%clk 0:00:03.8]}
53. Ba1 {[%clk 0:00:13]} 53... Ke6 {[%clk 0:00:04.1]} 54. Kh6 {[%clk 0:00:13.6]}
54... Kf5 {[%clk 0:00:04.4]} 55. Bf6 {[%clk 0:00:12.2]} 55... a3 {[%clk
0:00:04.4]} 56. Kxh7 {[%clk 0:00:12.8]} 56... a2 {[%clk 0:00:05.1]} 57. Kh6
{[%clk 0:00:12.2]} 57... Ke6 {[%clk 0:00:03.9]} 58. Ba1 {[%clk 0:00:12.4]} 58...
Kf7 {[%clk 0:00:04.5]} 59. g6+ {[%clk 0:00:12.8]} 59... Kg8 {[%clk 0:00:05.3]}
60. g7 {[%clk 0:00:13]} 60... Kf7 {[%clk 0:00:05.6]} 61. Kh7 {[%clk 0:00:13.9]}
1-0

[Event "Early-Titled-Tuesday-Blitz-October-03-2023"]
[Site "Chess.com"]
[Date "2023.10.03"]
[Round "3"]
[White "Mops_2004"]
[Black "NelsonLinda"]
[Result "0-1"]
[WhiteElo "2797"]
[BlackElo "2589"]
[TimeControl "180+1"]
[EndTime "8:29:50 PDT"]
[Termination "NelsonLinda won on time"]

1. g3 {[%clk 0:03:00.9]} 1... Nf6 {[%clk 0:02:58.4]} 2. Bg2 {[%clk 0:03:00.2]}
2... g6 {[%clk 0:02:58.9]} 3. d4 {[%clk 0:03:00.1]} 3... Bg7 {[%clk 0:02:59.4]}
4. e4 {[%clk 0:03:00.7]} 4... d6 {[%clk 0:02:33.1]} 5. Nc3 {[%clk 0:03:00.3]}
5... Nbd7 {[%clk 0:02:29.1]} 6. Nf3 {[%clk 0:02:59.9]} 6... O-O {[%clk
0:02:22.1]} 7. O-O {[%clk 0:03:00.1]} 7... e5 {[%clk 0:02:20.9]} 8. h3 {[%clk
0:02:59.9]} 8... Qe7 {[%clk 0:02:15]} 9. Re1 {[%clk 0:02:58.7]} 9... c6 {[%clk
0:02:15.3]} 10. a4 {[%clk 0:02:58.1]} 10... a5 {[%clk 0:02:14.8]} 11. b3 {[%clk
0:02:56.5]} 11... exd4 {[%clk 0:02:05]} 12. Nxd4 {[%clk 0:02:56.5]} 12... Nc5
{[%clk 0:02:05.2]} 13. Bf4 {[%clk 0:02:52.9]} 13... Rd8 {[%clk 0:02:02.9]} 14.
Qd2 {[%clk 0:02:52.3]} 14... Ne6 {[%clk 0:01:29.1]} 15. Nxe6 {[%clk 0:02:51.5]}
15... Qxe6 {[%clk 0:01:30]} 16. Rad1 {[%clk 0:02:49]} 16... Ne8 {[%clk
0:01:21.3]} 17. e5 {[%clk 0:02:20.4]} 17... d5 {[%clk 0:01:00.9]} 18. Ne4 {[%clk
0:02:20]} 18... Bd7 {[%clk 0:01:01.1]} 19. Nc5 {[%clk 0:02:03.6]} 19... Qe7
{[%clk 0:01:01]} 20. Nxb7 {[%clk 0:02:04.2]} 20... Rdb8 {[%clk 0:00:55.9]} 21.
Nd6 {[%clk 0:01:48.8]} 21... Nc7 {[%clk 0:00:55.8]} 22. Bg5 {[%clk 0:01:44.8]}
22... Qf8 {[%clk 0:00:55.6]} 23. Ne4 {[%clk 0:01:17.4]} 23... Bc8 {[%clk
0:00:34.5]} 24. Nf6+ {[%clk 0:01:15.8]} 24... Kh8 {[%clk 0:00:34.7]} 25. h4
{[%clk 0:01:09.6]} 25... Ne6 {[%clk 0:00:31.4]} 26. Be3 {[%clk 0:01:06.5]} 26...
h5 {[%clk 0:00:16.7]} 27. f4 {[%clk 0:00:56.8]} 27... Nc5 {[%clk 0:00:14.6]} 28.
Qc3 {[%clk 0:00:49.8]} 28... Na6 {[%clk 0:00:04.2]} 29. Qxc6 {[%clk 0:00:38.2]}
29... Nb4 {[%clk 0:00:04.6]} 30. Qc3 {[%clk 0:00:38.7]} 30... Bxf6 {[%clk
0:00:05.2]} 31. exf6 {[%clk 0:00:38.2]} 31... Bg4 {[%clk 0:00:05.3]} 32. Rd2
{[%clk 0:00:27.1]} 32... Rc8 {[%clk 0:00:05.8]} 33. Qb2 {[%clk 0:00:27.1]} 33...
Bf5 {[%clk 0:00:05.4]} 34. Ree2 {[%clk 0:00:22.8]} 34... Rc7 {[%clk 0:00:02.6]}
35. Bb6 {[%clk 0:00:18.7]} 35... Rc6 {[%clk 0:00:02.7]} 36. Bd4 {[%clk
0:00:19.3]} 36... Rac8 {[%clk 0:00:03]} 37. c3 {[%clk 0:00:19.9]} 37... Na6
{[%clk 0:00:01.5]} 38. Bxd5 {[%clk 0:00:18.5]} 38... Rd6 {[%clk 0:00:01.8]} 39.
Be5 {[%clk 0:00:18.7]} 39... Rdd8 {[%clk 0:00:01.3]} 40. c4 {[%clk 0:00:18.5]}
40... Nc7 {[%clk 0:00:01.5]} 41. Bf3 {[%clk 0:00:17.8]} 41... Qc5+ {[%clk
0:00:01.8]} 42. Kg2 {[%clk 0:00:16.4]} 42... Ne6 {[%clk 0:00:01.7]} 43. Rxd8+
{[%clk 0:00:13.7]} 43... Rxd8 {[%clk 0:00:02.6]} 44. Rd2 {[%clk 0:00:14.2]}
44... Kh7 {[%clk 0:00:03]} 45. Rxd8 {[%clk 0:00:13.8]} 45... Nxd8 {[%clk
0:00:03.9]} 46. Qd4 {[%clk 0:00:13.8]} 46... Qa3 {[%clk 0:00:03.8]} 47. Qb2
{[%clk 0:00:07.5]} 47... Qb4 {[%clk 0:00:03.6]} 48. Bc3 {[%clk 0:00:06.7]} 48...
Qc5 {[%clk 0:00:03.5]} 49. Qd2 {[%clk 0:00:07.3]} 49... Ne6 {[%clk 0:00:03.2]}
50. Qd5 {[%clk 0:00:06.9]} 50... Qa3 {[%clk 0:00:03.4]} 51. Qd2 {[%clk
0:00:04.7]} 51... Qxb3 {[%clk 0:00:03.8]} 52. Bd5 {[%clk 0:00:04.9]} 52... Qxa4
{[%clk 0:00:04]} 53. Be5 {[%clk 0:00:04.9]} 53... Nc5 {[%clk 0:00:04.1]} 54.
Bxf7 {[%clk 0:00:04.1]} 54... Qb3 {[%clk 0:00:03.1]} 55. Bd5 {[%clk 0:00:02]}
55... Ne4 {[%clk 0:00:02.9]} 0-1

[Event "Early-Titled-Tuesday-Blitz-October-03-2023"]
[Site "Chess.com"]
[Date "2023.10.03"]
[Round "3"]
[White "aa175"]
[Black "abc_xyz4744"]
[Result "1/2-1/2"]
[WhiteElo "2602"]
[BlackElo "2415"]
[TimeControl "180+1"]
[EndTime "8:29:59 PDT"]
[Termination "Game drawn by repetition"]

1. e4 {[%clk 0:02:59.6]} 1... c5 {[%clk 0:02:57.7]} 2. Nf3 {[%clk 0:02:59.7]}
2... g6 {[%clk 0:02:56.3]} 3. d4 {[%clk 0:02:59.4]} 3... cxd4 {[%clk 0:02:57.2]}
4. Qxd4 {[%clk 0:03:00.3]} 4... Nf6 {[%clk 0:02:56.3]} 5. Nc3 {[%clk 0:03:01]}
5... Nc6 {[%clk 0:02:55.7]} 6. Qa4 {[%clk 0:03:01.6]} 6... d6 {[%clk 0:02:56.4]}
7. e5 {[%clk 0:03:02.5]} 7... dxe5 {[%clk 0:02:57.3]} 8. Nxe5 {[%clk 0:03:02.9]}
8... Bd7 {[%clk 0:02:58]} 9. Nxd7 {[%clk 0:03:02.6]} 9... Nxd7 {[%clk
0:02:58.9]} 10. Be3 {[%clk 0:02:59.9]} 10... Bg7 {[%clk 0:02:58.6]} 11. Bb5
{[%clk 0:02:59.9]} 11... O-O {[%clk 0:02:58.4]} 12. O-O {[%clk 0:02:58.8]} 12...
Qc7 {[%clk 0:02:55.6]} 13. Nd5 {[%clk 0:02:58.2]} 13... Qe5 {[%clk 0:02:49.1]}
14. Bxc6 {[%clk 0:02:54.6]} 14... bxc6 {[%clk 0:02:45.9]} 15. Qxc6 {[%clk
0:02:55.5]} 15... Nf6 {[%clk 0:02:36.1]} 16. Nxf6+ {[%clk 0:02:47.4]} 16... Bxf6
{[%clk 0:02:33]} 17. c3 {[%clk 0:02:45.3]} 17... Rab8 {[%clk 0:02:10.9]} 18. Bd4
{[%clk 0:02:40.3]} 18... Qa5 {[%clk 0:02:04.1]} 19. b4 {[%clk 0:02:33.8]} 19...
Qa3 {[%clk 0:01:58.3]} 20. Bxf6 {[%clk 0:02:32.7]} 20... Rb6 {[%clk 0:01:58.6]}
21. Qc4 {[%clk 0:02:21.1]} 21... Rxf6 {[%clk 0:01:57]} 22. Qb3 {[%clk
0:02:18.8]} 22... Ra6 {[%clk 0:01:48.8]} 23. b5 {[%clk 0:02:15.5]} 23... Ra4
{[%clk 0:01:46.8]} 24. c4 {[%clk 0:02:13.9]} 24... Rc8 {[%clk 0:01:46.2]} 25.
Rfc1 {[%clk 0:02:11.5]} 25... Qb4 {[%clk 0:01:45.7]} 26. Rab1 {[%clk 0:02:04.3]}
26... Qa5 {[%clk 0:01:42.9]} 27. c5 {[%clk 0:01:59.7]} 27... Rxa2 {[%clk
0:01:40.9]} 28. b6 {[%clk 0:02:00.2]} 28... axb6 {[%clk 0:01:35.9]} 29. cxb6
{[%clk 0:02:01.1]} 29... Rxc1+ {[%clk 0:01:32.6]} 30. Rxc1 {[%clk 0:02:02]}
30... Ra1 {[%clk 0:01:33.2]} 31. Rf1 {[%clk 0:01:46.3]} 31... Qa6 {[%clk
0:01:29.3]} 32. Rd1 {[%clk 0:01:21.8]} 32... Qxb6 {[%clk 0:01:26.4]} 33. Qd3
{[%clk 0:01:16.3]} 33... Qa5 {[%clk 0:01:19.4]} 34. g3 {[%clk 0:01:12.7]} 34...
Rxd1+ {[%clk 0:01:17.7]} 35. Qxd1 {[%clk 0:01:12.8]} 35... Qe5 {[%clk
0:01:18.4]} 36. Qd8+ {[%clk 0:01:09.4]} 36... Kg7 {[%clk 0:01:18.2]} 37. Qa8
{[%clk 0:01:10.3]} 37... Qf6 {[%clk 0:01:16.8]} 38. h4 {[%clk 0:01:08.3]} 38...
h5 {[%clk 0:01:15.1]} 39. Kg2 {[%clk 0:01:07.2]} 39... e5 {[%clk 0:01:15.5]} 40.
Qb7 {[%clk 0:01:04.5]} 40... Qf5 {[%clk 0:01:15.2]} 41. Kg1 {[%clk 0:01:01]}
41... e4 {[%clk 0:01:14.9]} 42. Qb2+ {[%clk 0:00:57.5]} 42... Qf6 {[%clk
0:01:15.1]} 43. Qa3 {[%clk 0:00:48.7]} 43... Qd4 {[%clk 0:01:14.5]} 44. Qe7
{[%clk 0:00:43.4]} 44... Qd1+ {[%clk 0:01:11.4]} 45. Kh2 {[%clk 0:00:42.2]}
45... Qf3 {[%clk 0:01:11.4]} 46. Qe5+ {[%clk 0:00:41.6]} 46... Qf6 {[%clk
0:00:59.4]} 47. Qc5 {[%clk 0:00:37.9]} 47... Qe6 {[%clk 0:00:55.7]} 48. Qd4+
{[%clk 0:00:36.9]} 48... Qf6 {[%clk 0:00:55.9]} 49. Qe3 {[%clk 0:00:35.6]} 49...
Qf5 {[%clk 0:00:55.1]} 50. Kg1 {[%clk 0:00:35.1]} 50... Kh7 {[%clk 0:00:53.8]}
51. Qa7 {[%clk 0:00:34.3]} 51... Qf3 {[%clk 0:00:51.6]} 52. Qd4 {[%clk
0:00:26.6]} 52... e3 {[%clk 0:00:29]} 53. Qxe3 {[%clk 0:00:04.5]} 53... Qxe3
{[%clk 0:00:28.4]} 54. fxe3 {[%clk 0:00:05.4]} 54... Kg7 {[%clk 0:00:29]} 55.
Kf2 {[%clk 0:00:03.9]} 55... Kf6 {[%clk 0:00:29]} 56. Kf3 {[%clk 0:00:01.9]}
56... Ke5 {[%clk 0:00:16.4]} 57. e4 {[%clk 0:00:01.5]} 57... f6 {[%clk
0:00:16.7]} 58. Ke3 {[%clk 0:00:01.6]} 58... g5 {[%clk 0:00:17.1]} 59. hxg5
{[%clk 0:00:01.1]} 59... fxg5 {[%clk 0:00:17.1]} 60. Kf3 {[%clk 0:00:01.4]}
60... Kd4 {[%clk 0:00:17.3]} 61. e5 {[%clk 0:00:01.1]} 61... Kxe5 {[%clk
0:00:17.6]} 62. Ke3 {[%clk 0:00:01.8]} 62... Kd5 {[%clk 0:00:15.9]} 63. Kd3
{[%clk 0:00:02.1]} 63... Ke5 {[%clk 0:00:16.3]} 64. Ke3 {[%clk 0:00:02.6]} 64...
Kf5 {[%clk 0:00:15.6]} 65. Kf3 {[%clk 0:00:02.9]} 65... Ke5 {[%clk 0:00:15.9]}
66. Ke3 {[%clk 0:00:03.2]} 1/2-1/2

[Event "Early-Titled-Tuesday-Blitz-October-03-2023"]
[Site "Chess.com"]
[Date "2023.10.03"]
[Round "3"]
[White "hurricane7791"]
[Black "Denis_Makhnyov"]
[Result "1/2-1/2"]
[WhiteElo "2700"]
[BlackElo "2944"]
[TimeControl "180+1"]
[EndTime "8:30:00 PDT"]
[Termination "Game drawn - insufficient material"]

1. d4 {[%clk 0:03:00.9]} 1... d5 {[%clk 0:02:59.6]} 2. c4 {[%clk 0:02:59.2]}
2... e6 {[%clk 0:03:00]} 3. Nc3 {[%clk 0:02:58.6]} 3... c6 {[%clk 0:03:00.5]} 4.
Nf3 {[%clk 0:02:58.1]} 4... dxc4 {[%clk 0:02:59.5]} 5. a4 {[%clk 0:02:58.2]}
5... Bb4 {[%clk 0:02:58.9]} 6. e3 {[%clk 0:02:58.4]} 6... b5 {[%clk 0:02:58.7]}
7. Bd2 {[%clk 0:02:58.5]} 7... a5 {[%clk 0:02:58.8]} 8. axb5 {[%clk 0:02:58.9]}
8... Bxc3 {[%clk 0:02:59.2]} 9. Bxc3 {[%clk 0:02:59.8]} 9... cxb5 {[%clk
0:02:59.9]} 10. b3 {[%clk 0:03:00.4]} 10... Bb7 {[%clk 0:03:00.4]} 11. bxc4
{[%clk 0:03:00.6]} 11... b4 {[%clk 0:03:01.1]} 12. Bb2 {[%clk 0:03:01.2]} 12...
Nf6 {[%clk 0:03:01.8]} 13. Bd3 {[%clk 0:03:01.8]} 13... O-O {[%clk 0:03:02.4]}
14. O-O {[%clk 0:03:02.4]} 14... h6 {[%clk 0:02:54.1]} 15. Bc2 {[%clk
0:02:46.3]} 15... Nbd7 {[%clk 0:02:49.2]} 16. Nd2 {[%clk 0:02:46]} 16... Qc7
{[%clk 0:02:47.8]} 17. f4 {[%clk 0:02:40.1]} 17... Rfc8 {[%clk 0:02:37.7]} 18.
e4 {[%clk 0:02:12.8]} 18... Nb6 {[%clk 0:02:37.2]} 19. Bd3 {[%clk 0:02:04.2]}
19... Ba6 {[%clk 0:02:35.4]} 20. Rc1 {[%clk 0:02:04.5]} 20... a4 {[%clk
0:02:34]} 21. e5 {[%clk 0:02:00.8]} 21... Ne8 {[%clk 0:02:22.3]} 22. f5 {[%clk
0:01:51.1]} 22... a3 {[%clk 0:02:21.4]} 23. Ba1 {[%clk 0:01:50.5]} 23... exf5
{[%clk 0:02:16.8]} 24. Rxf5 {[%clk 0:01:49.6]} 24... Qd7 {[%clk 0:02:00.8]} 25.
Rf2 {[%clk 0:01:30.6]} 25... Rc7 {[%clk 0:01:20.9]} 26. Qf3 {[%clk 0:01:08.1]}
26... Bb7 {[%clk 0:01:13.1]} 27. Qg3 {[%clk 0:00:58.2]} 27... Rd8 {[%clk
0:01:00.6]} 28. Rb1 {[%clk 0:00:36.3]} 28... Qe7 {[%clk 0:00:44.7]} 29. Rbf1
{[%clk 0:00:21.4]} 29... Qg5 {[%clk 0:00:38.2]} 30. e6 {[%clk 0:00:08.7]} 30...
Qxg3 {[%clk 0:00:27.6]} 31. hxg3 {[%clk 0:00:09.6]} 31... Nf6 {[%clk 0:00:20.1]}
32. d5 {[%clk 0:00:09.7]} 32... Nbxd5 {[%clk 0:00:20.1]} 33. cxd5 {[%clk
0:00:09.7]} 33... Bxd5 {[%clk 0:00:20]} 34. Bxf6 {[%clk 0:00:07.3]} 34... gxf6
{[%clk 0:00:19.9]} 35. Ne4 {[%clk 0:00:06.8]} 35... Bxe6 {[%clk 0:00:12.5]} 36.
Nxf6+ {[%clk 0:00:06.5]} 36... Kf8 {[%clk 0:00:13]} 37. Be4 {[%clk 0:00:06.2]}
37... b3 {[%clk 0:00:12.6]} 38. Nh5 {[%clk 0:00:05.2]} 38... b2 {[%clk 0:00:09]}
39. Nf4 {[%clk 0:00:05.8]} 39... Ba2 {[%clk 0:00:09]} 40. Ng6+ {[%clk
0:00:05.3]} 40... Kg7 {[%clk 0:00:08.5]} 41. Ne5 {[%clk 0:00:05.6]} 41... Rc1
{[%clk 0:00:07.9]} 42. Kh2 {[%clk 0:00:05.5]} 42... Rdd1 {[%clk 0:00:04.5]} 43.
Rxd1 {[%clk 0:00:04.9]} 43... Rxd1 {[%clk 0:00:04.4]} 44. Bc2 {[%clk 0:00:04.7]}
44... Re1 {[%clk 0:00:04.2]} 45. Nd3 {[%clk 0:00:04.6]} 45... b1=Q {[%clk
0:00:04.3]} 46. Bxb1 {[%clk 0:00:03.6]} 46... Bxb1 {[%clk 0:00:03.5]} 47. Nxe1
{[%clk 0:00:03.1]} 47... a2 {[%clk 0:00:04.4]} 48. Rxa2 {[%clk 0:00:02.9]} 48...
Bxa2 {[%clk 0:00:05.3]} 49. Nf3 {[%clk 0:00:03.6]} 49... Bd5 {[%clk 0:00:05.5]}
50. Nh4 {[%clk 0:00:04.5]} 50... Kf6 {[%clk 0:00:05.8]} 51. Kg1 {[%clk
0:00:05.4]} 51... Kg5 {[%clk 0:00:06.2]} 52. Kf2 {[%clk 0:00:06.3]} 52... Kg4
{[%clk 0:00:06.7]} 53. Nf3 {[%clk 0:00:06.7]} 53... Bxf3 {[%clk 0:00:06.2]} 54.
gxf3+ {[%clk 0:00:07.6]} 54... Kh3 {[%clk 0:00:07.1]} 55. g4 {[%clk 0:00:08]}
55... f6 {[%clk 0:00:05.5]} 56. Ke3 {[%clk 0:00:07.9]} 56... Kg3 {[%clk
0:00:04]} 57. Ke4 {[%clk 0:00:08.3]} 57... Kf2 {[%clk 0:00:03.6]} 58. f4 {[%clk
0:00:07.4]} 58... Kg3 {[%clk 0:00:03.8]} 59. Kf5 {[%clk 0:00:08.1]} 59... Kf3
{[%clk 0:00:04.1]} 60. Kxf6 {[%clk 0:00:05.8]} 60... Kxf4 {[%clk 0:00:02.6]} 61.
Kg6 {[%clk 0:00:06.6]} 61... Kxg4 {[%clk 0:00:03.5]} 62. Kxh6 {[%clk 0:00:07.2]}
1/2-1/2